bitfinex/quotes_ETHUSD_20240530
["timestamp","ask_amount","ask_price","bid_price","bid_amount"]
[1717046243207,1.58669,3781.5,3780.2,0.192]
[1717046243208,1.29789222,3780.7,3780.2,0.192]
[1717046244623,1.41458246,3782.8,3780.6,1.92]
[1717046244821,1.0,3782.8,3780.7,0.05288783]
[1717046245011,0.06123434,3782.7,3781.2,1.92]
[1717046245210,0.06123434,3782.7,3781.3,0.05288778]
[1717046245400,0.06123434,3782.7,3781.2,1.92]
[1717046245834,0.06123434,3782.7,3781.3,2.3767]
[1717046246135,0.06123434,3782.7,3781.6,1.92]
[1717046246932,1.29789222,3782.5,3781.4,1.5867]
[1717046247688,0.55,3782.4,3781.4,1.5867]
[1717046247891,1.29789222,3782.3,3781.4,1.5867]
[1717046248088,0.55,3782.2,3781.4,1.5867]
[1717046248290,1.29789222,3782.1,3781.4,1.5867]
[1717046249298,0.55,3782.0,3781.4,1.5867]
[1717046249502,1.29789222,3781.9,3781.4,1.5867]
[1717046250132,1.29789222,3781.9,3780.8,3.50695]
[1717046250325,0.55,3781.8,3780.8,3.50695]
[1717046250644,1.29789222,3781.7,3780.8,3.50695]
[1717046252604,0.55,3781.6,3780.8,3.50695]
[1717046252805,1.29789222,3781.5,3780.8,3.50695]
[1717046259918,1.29789222,3781.5,3781.2,1.92]
[1717046260563,1.29789222,3781.5,3781.3,1.58675]
[1717046261116,7.38,3781.9,3781.5,1.58666]
[1717046261373,1.29789222,3781.8,3781.7,1.92]
[1717046263945,1.29789222,3781.8,3781.5,3.50666]
[1717046264136,1.29789222,3781.7,3781.5,3.50666]
[1717046267079,1.29789222,3781.7,3780.9,1.58688]
[1717046272453,1.29789222,3781.7,3780.9,1.937568]
[1717046272856,1.29789222,3781.7,3781.3,1.58671]
[1717046280593,1.29789222,3781.7,3780.3,3.0]
[1717046280594,2.4055,3781.4,3780.5,1.58707]
[1717046280819,1.29789222,3781.3,3780.5,1.58707]
[1717046280989,2.42023726,3781.3,3780.5,1.58707]
[1717046281185,2.42023726,3781.3,3779.9,1.5873]
[1717046282079,1.29789222,3781.1,3779.9,1.5873]
[1717046282379,1.29789222,3780.9,3780.0,0.15873]
[1717046282715,0.55,3780.8,3780.0,0.15873]
[1717046282918,1.29789222,3780.7,3780.0,0.15873]
[1717046283290,1.29789222,3780.7,3779.9,1.5873]
[1717046283677,3.65109222,3780.5,3779.3,1.58755]
[1717046283877,1.12251362,3780.4,3779.3,1.58755]
[1717046284119,1.29789222,3780.3,3779.3,1.58755]
[1717046284413,0.55,3780.2,3779.3,1.58755]
[1717046284578,1.29789222,3780.1,3779.3,1.58755]
[1717046285414,1.29789222,3780.1,3779.3,1.938305]
[1717046287896,0.55,3780.0,3779.3,1.938305]
[1717046288209,1.29789222,3779.9,3779.3,1.938305]
[1717046288511,1.29789222,3779.9,3779.3,1.58755]
[1717046289613,7.38,3780.6,3779.7,1.58741]
[1717046289823,1.84789222,3780.5,3779.7,1.58741]
[1717046290411,1.29789222,3780.5,3779.7,1.58741]
[1717046290922,7.38,3781.5,3780.4,1.58711]
[1717046291141,1.29789222,3781.1,3780.4,1.58711]
[1717046291279,2.4842,3780.8,3779.8,1.58735]
[1717046291483,1.29789222,3780.7,3779.8,1.58735]
[1717046291680,1.29789222,3780.6,3779.8,1.58735]
[1717046291941,1.29789222,3780.2,3779.2,1.5876]
[1717046292221,1.29789222,3780.0,3779.2,1.5876]
[1717046292406,0.55,3779.9,3779.2,1.5876]
[1717046292591,0.55,3779.9,3778.6,1.58785]
[1717046292592,1.29789222,3779.7,3778.6,1.58785]
[1717046292915,0.55,3779.6,3778.6,1.58785]
[1717046293113,1.29789222,3779.4,3778.6,1.58785]
[1717046293320,0.55,3779.3,3778.6,1.58785]
[1717046293520,1.29789222,3779.2,3778.6,1.58785]
[1717046293690,0.55,3779.1,3778.6,1.58785]
[1717046293888,1.29789222,3779.0,3778.6,1.58785]
[1717046294715,0.55,3778.9,3778.6,1.58785]
[1717046294889,1.29789222,3778.8,3778.6,1.58785]
[1717046296586,1.29789222,3778.8,3778.0,1.5881]
[1717046296786,1.29789222,3778.8,3778.1,0.15881]
[1717046297800,1.29789222,3778.8,3778.3,1.58801]
[1717046300088,7.38,3779.6,3778.8,1.58778]
[1717046300294,1.29789222,3779.5,3778.8,1.58778]
[1717046305921,1.29789222,3779.5,3779.2,1.58759]
[1717046306402,1.29789222,3779.5,3779.2,1.746349]
[1717046308104,7.38,3779.6,3779.2,3.666349]
[1717046309801,7.38,3780.2,3779.2,3.666349]
[1717046310003,1.29789222,3780.1,3779.2,3.666349]
[1717046310341,1.29789222,3780.1,3779.2,1.746349]
[1717046310513,1.29789222,3780.1,3779.2,1.58759]
[1717046310514,1.29789222,3779.9,3779.2,1.58759]
[1717046310834,0.55,3779.8,3779.2,1.58759]
[1717046311007,1.29789222,3779.7,3779.2,1.58759]
[1717046311209,1.29789222,3779.4,3778.5,1.5879]
[1717046311412,0.55,3779.3,3778.5,1.5879]
[1717046311735,1.29789222,3779.2,3778.5,1.74669]
[1717046314103,1.29789222,3779.2,3778.9,1.58772]
[1717046315435,7.38,3779.7,3779.4,1.58751]
[1717046315644,1.29789222,3779.7,3779.4,1.58751]
[1717046320148,0.57261221,3780.2,3779.4,1.58751]
[1717046320345,1.29789222,3780.1,3779.4,1.746261]
[1717046321836,1.29789222,3780.1,3779.4,3.666261]
[1717046322074,1.29789222,3780.1,3779.8,1.58735]
[1717046322664,0.57251908,3780.6,3779.8,1.58735]
[1717046322966,1.29789222,3780.5,3780.0,1.58726]
[1717046328260,7.38,3780.7,3780.5,1.58708]
[1717046328459,8.67789222,3780.7,3780.5,1.58708]
[1717046330987,7.38,3780.7,3780.5,1.58708]
[1717046332583,7.38,3781.3,3780.5,1.58708]
[1717046332784,1.29789222,3781.2,3780.5,1.58708]
[1717046334487,1.29789222,3781.2,3780.5,1.937788]
[1717046334987,1.29789222,3781.2,3780.7,1.58698]
[1717046337507,1.29789222,3781.2,3780.9,1.58691]
[1717046337795,22.2393,3781.7,3780.9,1.58691]
[1717046337976,1.29789222,3781.6,3780.9,1.58691]
[1717046338182,1.29789222,3781.6,3781.1,1.58683]
[1717046358411,1.29789222,3781.6,3781.2,0.799]
[1717046358598,1.29789222,3781.6,3781.4,0.799]
[1717046362519,1.29789222,3781.6,3781.1,1.58683]
[1717046362840,1.29789222,3781.6,3781.3,0.799]
[1717046363209,1.29789222,3781.6,3781.1,1.58683]
[1717046363421,1.29789222,3781.6,3781.2,0.799]
[1717046363732,1.29789222,3781.6,3781.1,1.58683]
[1717046364028,0.55,3781.5,3781.1,1.58683]
[1717046364328,1.29789222,3781.4,3781.1,1.58683]
[1717046364536,1.87026638,3781.4,3781.1,1.58683]
[1717046365496,1.87026638,3781.4,3780.6,1.58702]
[1717046365849,0.55,3781.3,3780.6,1.58702]
[1717046366002,0.55,3781.3,3780.6,2.38602]
[1717046366003,1.29789222,3781.2,3780.6,2.38602]
[1717046366506,2.09689222,3781.2,3780.1,1.58724]
[1717046366722,0.55,3781.1,3780.2,0.799]
[1717046366923,1.29789222,3781.0,3780.1,1.58724]
[1717046367152,0.55,3780.9,3780.3,0.799]
[1717046367319,1.29789222,3780.8,3780.3,0.799]
[1717046367852,1.29789222,3780.8,3780.1,1.58724]
[1717046368051,1.29789222,3780.8,3780.4,0.799]
[1717046370947,1.29789222,3780.8,3780.1,1.58724]
[1717046371130,1.29789222,3780.8,3780.5,0.799]
[1717046380261,1.29789222,3780.8,3780.1,1.7618375]
[1717046380467,1.29789222,3780.8,3780.5,0.799]
[1717046381555,1.29789222,3780.8,3780.1,1.7618375]
[1717046381755,1.29789222,3780.8,3780.5,0.799]
[1717046383549,1.29789222,3780.8,3780.1,1.7618375]
[1717046383749,1.29789222,3780.8,3780.5,0.799]
[1717046384173,1.29789222,3780.8,3780.3,1.58716]
[1717046384377,1.29789222,3780.8,3780.5,0.799]
[1717046384671,2.2654,3780.7,3780.3,2.38616]
[1717046384861,1.29789222,3780.6,3780.3,1.58716]
[1717046385275,1.87026638,3780.6,3780.3,1.58716]
[1717046386242,1.87026638,3780.6,3780.4,0.799]
[1717046390885,1.87038849,3780.6,3780.3,1.58716]
[1717046391045,1.87038849,3780.6,3780.3,2.38616]
[1717046393299,1.87038849,3780.6,3780.3,1.58716]
[1717046393531,1.87038849,3780.6,3780.3,2.38616]
[1717046397348,1.29789222,3780.6,3780.3,2.38616]
[1717046397687,1.29789222,3780.6,3780.3,2.624776]
[1717046398111,1.29789222,3780.6,3780.5,0.799]
[1717046403466,0.5724791,3781.2,3780.6,1.58703]
[1717046403644,1.87037132,3781.2,3781.1,0.799]
[1717046403960,0.5724791,3781.2,3781.1,1.037585]
[1717046404125,7.38,3781.3,3781.2,1.58679]
[1717046404456,7.95232447,3781.3,3781.2,1.58679]
[1717046404655,7.95232447,3781.3,3781.2,2.0947075]
[1717046405444,7.38,3781.3,3781.2,2.0947075]
[1717046409543,12.36,3781.7,3781.2,2.0947075]
[1717046409747,13.65789222,3781.7,3781.6,0.799]
[1717046409946,1.87021003,3781.7,3781.6,0.799]
[1717046410152,0.57231781,3781.7,3781.6,0.799]
[1717046410336,2.43593434,3782.7,3781.7,1.58658]
[1717046410537,1.29789222,3782.6,3781.7,1.58658]
[1717046410738,1.8701216,3782.6,3782.2,0.799]
[1717046410967,0.55,3782.5,3781.7,1.58658]
[1717046411265,0.799,3782.3,3781.4,0.799]
[1717046411460,2.9569,3782.2,3781.3,0.799]
[1717046411669,2.16049438,3782.1,3781.3,0.799]
[1717046411832,0.55,3782.0,3781.4,0.799]
[1717046412029,1.29789222,3781.9,3781.4,0.799]
[1717046413813,1.29789222,3781.9,3781.2,1.58679]
[1717046413974,1.29789222,3781.9,3781.4,0.799]
[1717046414571,2.4071,3781.7,3780.7,1.587]
[1717046414894,1.84789222,3781.6,3781.2,0.799]
[1717046415095,1.84789222,3781.6,3780.7,1.587]
[1717046415096,2.4201216,3781.6,3780.7,1.587]
[1717046415287,2.4201216,3781.6,3781.1,0.799]
[1717046416181,2.4201216,3781.6,3780.7,1.587]
[1717046416387,0.56262216,3781.5,3780.7,2.386]
[1717046416699,1.84789222,3781.4,3780.7,2.386]
[1717046416895,1.84789222,3781.4,3780.9,0.799]
[1717046417315,1.84789222,3781.4,3780.7,1.587]
[1717046417816,2.3868766,3781.4,3780.7,2.386]
[1717046419213,3.65979222,3781.3,3780.2,1.58721]
[1717046419522,3.65979222,3781.3,3780.3,0.799]
[1717046419523,1.12222938,3781.2,3780.3,0.799]
[1717046419675,1.29789222,3781.1,3780.2,1.58721]
[1717046419879,0.55,3781.0,3780.3,0.799]
[1717046420085,1.29789222,3780.7,3779.6,1.58745]
[1717046420385,0.55,3780.6,3780.0,0.799]
[1717046420725,0.55,3780.6,3779.6,1.58745]
[1717046420726,1.29789222,3780.5,3779.6,1.58745]
[1717046420927,1.29789222,3780.5,3780.0,0.799]
[1717046421138,1.29789222,3780.3,3779.1,2.4694]
[1717046421313,0.55,3780.2,3779.7,0.799]
[1717046421511,1.29789222,3780.1,3779.7,0.799]
[1717046421713,0.55,3780.0,3779.7,0.799]
[1717046422030,1.29789222,3779.9,3779.7,0.799]
[1717046429939,2.3933,3780.5,3779.7,0.799]
[1717046430080,1.29789222,3780.4,3780.3,0.799]
[1717046431512,1.29789222,3780.4,3780.3,0.84237927]
[1717046431712,7.38,3780.8,3780.4,1.58713]
[1717046431912,1.29789222,3780.7,3780.4,1.83008093]
[1717046432101,1.29789222,3780.7,3780.6,0.799]
[1717046432735,1.29789222,3780.7,3780.6,0.84135479]
[1717046434747,9.734,3781.3,3780.6,0.84135479]
[1717046434932,1.84789222,3781.2,3780.6,0.84135479]
[1717046435142,1.29789222,3781.2,3780.8,0.799]
[1717046435342,1.29789222,3781.2,3781.0,0.799]
[1717046435818,1.29789222,3781.2,3781.1,0.0418704]
[1717046436022,1.29789222,3781.2,3781.0,0.799]
[1717046436252,1.29789222,3781.2,3781.1,0.0418704]
[1717046436913,1.29789222,3781.2,3780.8,0.799]
[1717046437111,1.29789222,3781.2,3781.1,0.0418704]
[1717046437343,1.29789222,3781.2,3780.8,0.799]
[1717046437555,1.29789222,3781.2,3781.1,0.0418704]
[1717046438042,1.29789222,3781.2,3780.8,0.799]
[1717046438243,1.29789222,3781.2,3781.1,0.0418704]
[1717046438639,1.29789222,3781.2,3780.8,0.799]
[1717046438845,1.29789222,3781.2,3781.1,0.0418704]
[1717046439042,1.29789222,3781.2,3780.8,0.799]
[1717046439657,1.29789222,3781.2,3780.9,0.0418704]
[1717046442246,2.3691,3781.1,3780.2,1.58721]
[1717046442497,1.29789222,3781.0,3780.5,0.799]
[1717046442703,1.29789222,3781.0,3780.2,1.58721]
[1717046442865,0.55,3780.9,3780.3,0.799]
[1717046443060,1.29789222,3780.8,3780.3,0.799]
[1717046444935,1.29789222,3780.8,3780.2,1.58721]
[1717046445071,1.85673772,3780.8,3780.1,0.799]
[1717046445277,1.85673772,3780.8,3779.7,1.58741]
[1717046445278,2.8229,3780.7,3779.7,1.58741]
[1717046445478,1.87035504,3780.6,3780.1,0.799]
[1717046446102,1.87035504,3780.6,3780.2,0.0420722]
[1717046446275,1.87035504,3780.6,3780.1,0.799]
[1717046446482,1.87035504,3780.6,3780.3,0.0420722]
[1717046446684,1.87035504,3780.6,3780.1,0.799]
[1717046446889,1.87035504,3780.6,3780.4,0.0420722]
[1717046447224,1.29789222,3780.6,3780.1,0.799]
[1717046447428,1.87041032,3780.6,3780.1,0.799]
[1717046447583,1.87041032,3780.6,3780.2,0.0420722]
[1717046447985,1.87041032,3780.6,3780.1,0.799]
[1717046448427,1.87041032,3780.6,3780.2,0.0420722]
[1717046448624,1.87041166,3780.6,3780.2,0.0420722]
[1717046448830,1.87041166,3780.6,3780.1,0.799]
[1717046449187,1.87041166,3780.6,3780.2,0.0420722]
[1717046449602,1.87041166,3780.6,3780.1,0.799]
[1717046449929,1.87041166,3780.6,3780.2,0.0420722]
[1717046450126,1.87041166,3780.6,3780.1,0.799]
[1717046450332,1.87041166,3780.6,3780.3,0.0420722]
[1717046450531,1.87041166,3780.6,3780.1,0.799]
[1717046450732,1.87041166,3780.6,3780.4,0.0420722]
[1717046450934,1.87041166,3780.6,3780.1,0.799]
[1717046451130,1.87041321,3780.6,3780.5,0.0420722]
[1717046451437,1.87041318,3780.6,3780.1,0.799]
[1717046451790,1.87041318,3780.6,3780.2,0.0420722]
[1717046452334,1.87041318,3780.6,3780.1,0.799]
[1717046452544,1.29789222,3780.6,3780.3,0.0420722]
[1717046452831,1.29789222,3780.6,3780.1,0.799]
[1717046453037,1.87040259,3780.6,3780.1,0.799]
[1717046453243,1.87040259,3780.6,3780.3,0.799]
[1717046453799,1.87040259,3780.6,3780.4,0.04225567]
[1717046454202,1.87040259,3780.6,3780.3,0.799]
[1717046456891,1.29789222,3780.6,3780.3,0.799]
[1717046457094,1.29789222,3780.6,3780.4,0.04225567]
[1717046457290,1.29789222,3780.6,3780.3,0.799]
[1717046457527,1.29789222,3780.6,3780.5,0.04225567]
[1717046457687,1.29789222,3780.6,3780.3,0.799]
[1717046458037,1.29789222,3780.6,3780.5,0.04225567]
[1717046458326,1.87036732,3780.6,3780.3,0.799]
[1717046459884,1.87036801,3780.6,3780.3,0.799]
[1717046465234,1.87036801,3780.6,3780.5,0.799]
[1717046465539,0.57247579,3781.1,3780.6,3.92871]
[1717046465828,1.29789222,3781.1,3781.0,0.799]
[1717046466135,1.29789222,3781.1,3781.0,0.84128871]
[1717046466332,1.29789222,3781.1,3781.0,0.799]
[1717046466710,1.29789222,3781.1,3781.0,0.84111257]
[1717046468308,0.57247579,3781.5,3781.1,1.58681]
[1717046468541,1.29789222,3781.4,3781.1,1.82960226]
[1717046468734,1.29789222,3781.4,3781.3,0.799]
[1717046469160,0.57247579,3781.5,3781.4,1.58671]
[1717046469321,0.57247579,3781.9,3781.4,1.58671]
[1717046469525,1.29789222,3781.8,3781.4,1.58671]
[1717046469717,1.29789222,3781.8,3781.5,0.799]
[1717046472157,1.29789222,3781.8,3781.7,0.799]
[1717046472360,1.29789222,3781.8,3781.7,1.037571]
[1717046472592,1.29789222,3781.8,3781.7,0.799]
[1717046474137,1.29789222,3781.8,3781.7,0.84057325]
[1717046485694,1.29789222,3781.8,3781.7,0.04157325]
[1717046486091,1.29789222,3781.8,3781.6,0.799]
[1717046486265,1.29789222,3781.8,3781.7,0.04144122]
[1717046486578,1.29789222,3781.8,3781.6,0.799]
[1717046486761,1.29789222,3781.8,3781.7,0.04144122]
[1717046486961,1.29789222,3781.8,3781.6,0.799]
[1717046487162,1.29789222,3781.8,3781.7,0.04144122]
[1717046487357,1.29789222,3781.8,3781.6,0.799]
[1717046487616,1.29789222,3781.8,3781.7,0.04144122]
[1717046487970,1.29789222,3781.8,3781.6,0.799]
[1717046488178,1.29789222,3781.8,3781.7,0.04144122]
[1717046488544,1.29789222,3781.8,3781.6,0.799]
[1717046488750,1.29789222,3781.8,3781.7,0.04144122]
[1717046488980,1.29789222,3781.8,3781.6,0.799]
[1717046489185,1.29789222,3781.8,3781.7,0.04144122]
[1717046489581,1.29789222,3781.8,3781.6,0.799]
[1717046489886,1.29789222,3781.8,3781.7,0.04144122]
[1717046490261,1.29789222,3781.8,3781.6,0.799]
[1717046490467,1.29789222,3781.8,3781.7,0.04144122]
[1717046491179,1.29789222,3781.8,3781.6,0.799]
[1717046491389,1.29789222,3781.8,3781.7,0.04144122]
[1717046491694,1.29789222,3781.8,3781.6,0.799]
[1717046492071,1.29789222,3781.8,3781.7,0.04144122]
[1717046492484,1.29789222,3781.8,3781.6,0.799]
[1717046492803,1.29789222,3781.8,3781.7,0.04144122]
[1717046493298,1.29789222,3781.8,3781.6,0.799]
[1717046493482,1.29789222,3781.8,3781.7,0.04144122]
[1717046493801,1.29789222,3781.8,3781.6,0.799]
[1717046494003,1.29789222,3781.8,3781.7,0.04144122]
[1717046494378,1.29789222,3781.8,3781.6,0.799]
[1717046494702,1.29789222,3781.8,3781.7,0.04144122]
[1717046495003,1.29789222,3781.8,3781.6,0.799]
[1717046495200,1.29789222,3781.8,3781.7,0.04148158]
[1717046495576,1.29789222,3781.8,3781.6,0.799]
[1717046495777,1.29789222,3781.8,3781.7,0.04148158]
[1717046495966,1.29789222,3781.8,3781.6,0.799]
[1717046496167,1.29789222,3781.8,3781.7,0.04148158]
[1717046496403,1.29789222,3781.8,3781.6,0.799]
[1717046496585,1.29789222,3781.8,3781.7,0.04148158]
[1717046497097,0.57229032,3782.2,3781.6,0.799]
[1717046497297,0.57229032,3782.2,3781.4,1.58671]
[1717046497298,1.29789222,3782.1,3781.8,0.799]
[1717046500072,1.29789222,3782.1,3781.7,0.238571]
[1717046500273,1.29789222,3782.1,3781.8,0.799]
[1717046501606,0.57229032,3782.4,3781.8,0.799]
[1717046501811,1.29789222,3782.3,3781.8,2.38552]
[1717046507083,1.29789222,3782.3,3781.8,1.58652]
[1717046507415,1.29789222,3782.3,3781.9,0.799]
[1717046510624,1.29789222,3782.3,3781.3,1.58673]
[1717046510925,0.55,3782.2,3781.6,0.799]
[1717046511218,1.29789222,3782.1,3781.6,0.799]
[1717046511589,1.29789222,3782.1,3781.7,0.04131653]
[1717046511789,1.29789222,3782.1,3781.6,0.799]
[1717046512090,2.3963,3782.0,3781.7,0.04131653]
[1717046512411,1.29789222,3781.9,3781.4,0.799]
[1717046512592,1.87015332,3781.9,3781.8,0.04131653]
[1717046512798,1.87015332,3781.9,3781.4,0.799]
[1717046513193,1.87015332,3781.9,3781.5,0.04131653]
[1717046516824,1.87015332,3781.9,3781.6,0.799]
[1717046517403,1.87015332,3781.9,3781.7,0.04142656]
[1717046517789,1.87015332,3781.9,3781.6,0.799]
[1717046518014,1.87015332,3781.9,3781.7,0.04142656]
[1717046518289,1.87015332,3781.9,3781.6,0.799]
[1717046518491,1.87015332,3781.9,3781.7,0.04147424]
[1717046518690,1.87015332,3781.9,3781.6,0.799]
[1717046518917,0.5722611,3781.9,3781.8,3.2946]
[1717046519118,0.63349544,3782.7,3781.9,1.58647]
[1717046519319,1.29789222,3782.6,3782.5,0.799]
[1717046519716,1.29789222,3782.6,3782.5,0.0414559]
[1717046520033,1.29789222,3782.6,3781.9,1.58647]
[1717046520334,1.29789222,3782.6,3782.5,0.0414559]
[1717046520335,2.09689222,3782.6,3782.5,0.0414559]
[1717046520534,2.09689222,3782.6,3781.3,1.58672]
[1717046520735,2.09689222,3782.2,3781.3,1.58672]
[1717046520922,2.09689222,3782.2,3781.2,0.799]
[1717046521298,2.09689222,3782.2,3781.3,0.04127989]
[1717046521299,1.92317676,3782.1,3781.3,0.04127989]
[1717046521501,1.29789222,3781.9,3780.8,1.58695]
[1717046521700,4.91957676,3781.8,3781.0,0.799]
[1717046521998,3.79333008,3781.7,3781.1,0.04127989]
[1717046522226,3.04543786,3781.6,3781.1,0.04127989]
[1717046522536,1.29789222,3781.5,3781.2,0.799]
[1717046522835,1.29789222,3781.5,3781.3,0.04127989]
[1717046523208,1.29789222,3781.5,3781.2,0.799]
[1717046523618,1.29789222,3781.5,3781.3,0.04127989]
[1717046523812,1.29789222,3781.5,3781.4,0.799]
[1717046524338,0.5722611,3781.9,3781.4,0.799]
[1717046524539,1.29789222,3781.8,3781.6,0.799]
[1717046525173,1.29789222,3781.8,3781.7,0.04127989]
[1717046525435,1.29789222,3781.8,3781.6,0.799]
[1717046525634,1.29789222,3781.8,3781.7,0.04127989]
[1717046526005,1.29789222,3781.8,3781.6,0.799]
[1717046526224,1.29789222,3781.8,3781.7,0.04127989]
[1717046526604,1.29789222,3781.8,3781.6,0.799]
[1717046526803,1.29789222,3781.8,3781.7,0.04127989]
[1717046527003,1.29789222,3781.8,3781.6,0.799]
[1717046527230,1.29789222,3781.8,3781.7,0.04127989]
[1717046527628,1.29789222,3781.8,3781.6,0.799]
[1717046527840,1.29789222,3781.8,3781.7,0.04119185]
[1717046528248,1.29789222,3781.8,3781.6,0.799]
[1717046528420,1.29789222,3781.8,3781.7,0.04119185]
[1717046528746,1.29789222,3781.8,3781.6,0.799]
[1717046528944,1.29789222,3781.8,3781.7,0.04119185]
[1717046529149,1.29789222,3781.8,3781.6,0.799]
[1717046529349,1.29789222,3781.8,3781.7,0.04119185]
[1717046529525,1.29789222,3781.8,3781.6,0.799]
[1717046529726,1.29789222,3781.8,3781.7,0.04119185]
[1717046529931,1.29789222,3781.8,3781.6,0.799]
[1717046530241,1.29789222,3781.8,3781.7,0.04119185]
[1717046530650,1.29789222,3781.8,3781.6,0.799]
[1717046530831,1.29789222,3781.8,3781.7,0.04119185]
[1717046531220,1.29789222,3781.8,3781.2,1.58676]
[1717046531447,1.29789222,3781.8,3781.7,0.04119185]
[1717046531753,1.29789222,3781.8,3781.4,0.799]
[1717046531956,1.29789222,3781.8,3781.5,0.04119185]
[1717046534260,1.29789222,3781.8,3781.5,0.84019185]
[1717046534460,0.55,3781.7,3781.5,0.84019185]
[1717046534610,1.29789222,3781.6,3781.5,0.84019185]
[1717046536038,1.29789222,3781.6,3781.5,0.04119185]
[1717046536753,1.29789222,3781.6,3781.2,2.38576]
[1717046537255,1.29789222,3781.6,3781.3,0.04119185]
[1717046537673,1.29789222,3781.6,3781.2,2.38576]
[1717046537674,1.78181339,3781.6,3781.2,2.38576]
[1717046537818,1.78181339,3781.6,3781.4,0.04119185]
[1717046537819,0.55,3781.5,3781.4,0.04119185]
[1717046538019,1.84789222,3781.5,3781.2,1.58676]
[1717046538220,1.29789222,3781.4,3781.2,1.58676]
[1717046539331,1.29789222,3781.4,3781.2,2.38576]
[1717046540856,1.29789222,3781.4,3781.2,1.58676]
[1717046541056,1.29789222,3781.4,3781.2,2.38576]
[1717046541234,1.29789222,3781.4,3781.2,1.58676]
[1717046541846,1.29789222,3781.4,3781.3,0.799]
[1717046542266,1.29789222,3781.4,3781.2,2.38576]
[1717046547720,1.29789222,3781.4,3781.2,2.624336]
[1717046549084,1.29789222,3781.4,3781.2,1.58676]
[1717046549291,1.29789222,3781.4,3781.3,0.799]
[1717046549893,1.29789222,3781.4,3781.3,0.84057328]
[1717046560142,0.5723291,3781.9,3781.3,0.84057328]
[1717046560283,1.29789222,3781.8,3781.3,0.84057328]
[1717046560491,1.29789222,3781.8,3781.3,0.799]
[1717046560704,1.29789222,3781.8,3781.5,0.799]
[1717046568114,2.2877,3781.7,3780.6,1.58702]
[1717046568420,1.84789222,3781.6,3780.7,0.04134255]
[1717046568584,2.42022132,3781.6,3780.9,0.799]
[1717046568784,3.01295167,3781.6,3780.9,0.799]
[1717046569196,0.57240945,3781.5,3781.0,0.04121784]
[1717046569514,1.84789222,3781.4,3781.0,0.04121784]
[1717046569723,3.67999222,3781.1,3781.0,0.04121784]
[1717046569885,4.80240167,3781.1,3781.0,0.04121784]
[1717046570087,6.21654184,3781.1,3780.1,0.799]
[1717046570308,1.29789222,3780.9,3780.1,0.799]
[1717046570513,1.29789222,3780.9,3780.2,0.04121784]
[1717046570718,0.55,3780.8,3780.2,0.04121784]
[1717046570921,1.29789222,3780.7,3780.2,0.04121784]
[1717046571097,0.55,3780.6,3780.1,0.799]
[1717046571298,1.29789222,3780.5,3780.1,0.799]
[1717046571498,1.29789222,3780.5,3780.2,0.03846998]
[1717046571821,1.29789222,3780.5,3780.1,0.799]
[1717046571988,1.29789222,3780.5,3780.3,0.03714185]
[1717046572406,1.29789222,3780.5,3780.0,1.58728]
[1717046572727,1.29789222,3780.5,3780.4,0.03714185]
[1717046572909,1.29789222,3780.5,3780.2,0.799]
[1717046572910,1.84789222,3780.5,3780.2,0.799]
[1717046573111,1.84789222,3780.5,3780.4,0.03748672]
[1717046573306,1.84789222,3780.5,3780.2,0.799]
[1717046573512,1.84789222,3780.5,3780.4,0.03748672]
[1717046573820,1.84789222,3780.5,3780.2,0.799]
[1717046574522,1.84789222,3780.5,3780.0,1.746008]
[1717046574523,1.84789222,3780.5,3780.4,0.799]
[1717046576435,0.57252947,3781.0,3780.2,1.5872]
[1717046576616,1.29789222,3780.9,3780.7,0.799]
[1717046576796,1.29789222,3780.9,3780.8,0.0378866]
[1717046577119,1.29789222,3780.9,3780.6,0.799]
[1717046577439,1.29789222,3780.9,3780.7,0.0378866]
[1717046578511,1.29789222,3780.9,3780.6,0.799]
[1717046578799,1.29789222,3780.9,3780.7,0.03779486]
[1717046580695,1.29789222,3780.9,3780.5,0.799]
[1717046580933,1.29789222,3780.9,3780.8,0.03779486]
[1717046581237,1.29789222,3780.9,3780.5,0.799]
[1717046581437,1.29789222,3780.9,3780.6,0.03778019]
[1717046581650,1.29789222,3780.9,3780.5,0.799]
[1717046581845,1.29789222,3780.9,3780.7,0.799]
[1717046582345,1.29789222,3780.9,3780.8,0.03778019]
[1717046582708,1.29789222,3780.9,3780.7,0.799]
[1717046583109,1.29789222,3780.9,3780.8,0.03778019]
[1717046583511,1.29789222,3780.9,3780.7,0.799]
[1717046584037,1.29789222,3780.9,3780.8,0.03778019]
[1717046584350,1.29789222,3780.9,3780.7,0.799]
[1717046584653,1.29789222,3780.9,3780.8,0.03778019]
[1717046584824,1.29789222,3780.9,3780.7,0.799]
[1717046585026,1.29789222,3780.9,3780.8,0.03778019]
[1717046585334,1.29789222,3780.9,3780.7,0.799]
[1717046585735,1.29789222,3780.9,3780.8,0.03778019]
[1717046586256,1.29789222,3780.9,3780.7,0.799]
[1717046586458,1.29789222,3780.9,3780.8,0.03762609]
[1717046586613,1.29789222,3780.9,3780.7,0.799]
[1717046586813,1.29789222,3780.9,3780.8,0.03762609]
[1717046587013,1.29789222,3780.9,3780.7,0.799]
[1717046587215,1.29789222,3780.9,3780.8,0.03762609]
[1717046587436,1.29789222,3780.9,3780.7,0.799]
[1717046587641,1.29789222,3780.9,3780.8,0.03762609]
[1717046587810,1.29789222,3780.9,3780.7,0.799]
[1717046588015,1.29789222,3780.9,3780.8,0.03762609]
[1717046588217,1.29789222,3780.9,3780.7,0.799]
[1717046588418,1.29789222,3780.9,3780.8,0.03762609]
[1717046588618,1.29789222,3780.9,3780.7,0.799]
[1717046588838,1.29789222,3780.9,3780.8,0.03762609]
[1717046589159,0.57242767,3781.3,3780.7,0.799]
[1717046589160,0.57242767,3781.3,3780.7,2.38599]
[1717046589351,1.29789222,3781.2,3781.0,0.799]
[1717046589719,1.29789222,3781.2,3781.1,0.03762609]
[1717046589919,1.29789222,3781.2,3781.0,0.799]
[1717046591520,1.29789222,3781.2,3781.1,0.03762609]